fUST/lending_fUST_20251028
["ID","MTS","AMOUNT","RATE_DAILY","PERIOD"]
[392530157,1761613849943,-500.0,0.00022191,2]
[392530158,1761613849954,-500.0,0.00022191,2]
[392530159,1761613849963,-1311.17,0.00022191,2]
[392530160,1761613849972,-726.18,0.00022191,2]
[392530161,1761613849983,-179.380932,0.00022191,2]
[392530162,1761613849992,-646.14390336,0.00022191,2]
[392530163,1761613850001,-500.0,0.00022191,2]
[392530164,1761613850011,-586.0,0.00022191,2]
[392530165,1761613850020,-500.0,0.00022191,2]
[392530166,1761613850030,-633.53,0.00022191,2]
[392530167,1761613850039,-500.0,0.00022191,2]
[392530168,1761613850048,-665.45,0.00022191,2]
[392530169,1761613850058,-500.0,0.00022191,2]
[392530170,1761613850067,-806.26,0.00022191,2]
[392530171,1761613850076,-307.18569883,0.00022191,2]
[392530172,1761613850087,-500.0,0.00022191,2]
[392530173,1761613850098,-500.0,0.00022191,2]
[392530174,1761613850107,-500.0,0.00022191,2]
[392530175,1761613850118,-1368.44,0.00022191,2]
[392530176,1761613850128,-500.0,0.00022191,2]
[392530177,1761613850137,-843.45,0.00022191,2]
[392530178,1761613850146,-543.41,0.00022191,2]
[392530179,1761613850157,-500.0,0.00022191,2]
[392530180,1761613850166,-500.0,0.00022191,2]
[392530181,1761613850175,-500.0,0.00022191,2]
[392530182,1761613850184,-500.0,0.00022191,2]
[392530183,1761613850193,-500.0,0.00022191,2]
[392530184,1761613850202,-500.0,0.00022191,2]
[392530185,1761613850212,-500.0,0.00022191,2]
[392530186,1761613850221,-500.0,0.00022191,2]
[392530187,1761613850230,-500.0,0.00022191,2]
[392530188,1761613850240,-505.72,0.00022191,2]
[392530189,1761613850249,-1458.9,0.00022191,2]
[392530190,1761613850259,-500.0,0.00022191,2]
[392530191,1761613850268,-500.0,0.00022191,2]
[392530192,1761613850277,-587.81139481,0.00022191,2]
[392530193,1761613850286,-1128.41,0.00022191,2]
[392530194,1761613850296,-500.0,0.00022191,2]
[392530195,1761613850305,-500.0,0.00022191,2]
[392530196,1761613850315,-500.0,0.00022191,2]
[392530197,1761613850324,-562.95,0.00022191,2]
[392530198,1761613850335,-500.0,0.00022191,2]
[392530199,1761613850347,-500.0,0.00022191,2]
[392530200,1761613850356,-500.0,0.00022191,2]
[392530201,1761613850367,-500.0,0.00022191,2]
[392530202,1761613850377,-190.94591483,0.00022191,2]
[392530203,1761613850387,-500.0,0.00022191,2]
[392530204,1761613850398,-843.31,0.00022191,2]
[392530205,1761613850408,-500.0,0.00022191,2]
[392530206,1761613850418,-648.16,0.00022191,2]
[392530207,1761613850427,-510.75,0.00022191,2]
[392530208,1761613850436,-500.0,0.00022191,2]
[392530209,1761613850446,-500.0,0.00022191,2]
[392530210,1761613850455,-678.9,0.00022191,2]
[392530211,1761613850465,-506.82212262,0.00022191,2]
[392530212,1761613850474,-500.0,0.00022191,2]
[392530213,1761613850484,-500.0,0.00022191,2]
[392530214,1761613850494,-500.0,0.00022191,2]
[392530215,1761613850505,-500.0,0.00022191,2]
[392530216,1761613850514,-500.0,0.00022191,2]
[392530217,1761613850523,-500.0,0.00022191,2]
[392530218,1761613850535,-500.0,0.00022191,2]
[392530219,1761613850556,-500.0,0.00022191,2]
[392530220,1761613850577,-500.0,0.00022191,2]
[392530221,1761613850588,-500.0,0.00022191,2]
[392530222,1761613850597,-500.0,0.00022191,2]
[392530223,1761613850607,-936.08,0.00022191,2]
[392530224,1761613850616,-638.13,0.00022191,2]
[392530225,1761613850626,-500.0,0.00022191,2]
[392530226,1761613850635,-541.05,0.00022191,2]
[392530227,1761613850645,-500.0,0.00022191,2]
[392530228,1761613850654,-1457.66,0.00022191,2]
[392530229,1761613850663,-500.0,0.00022191,2]
[392530230,1761613850673,-500.0,0.00022191,2]
[392530231,1761613850682,-500.0,0.00022191,2]
[392530232,1761613850691,-1184.3,0.00022191,2]
[392530233,1761613850700,-774.18,0.00022191,2]
[392530234,1761613850709,-500.0,0.00022191,2]
[392530235,1761613850719,-500.0,0.00022191,2]
[392530236,1761613850728,-500.0,0.00022191,2]
[392530237,1761613850738,-664.38,0.00022191,2]
[392530238,1761613850747,-489.27883721,0.00022191,2]
[392530239,1761613850756,-500.0,0.00022191,2]
[392530240,1761613850766,-1274.86,0.00022191,2]
[392530241,1761613850776,-500.0,0.00022191,2]
[392530242,1761613850785,-500.0,0.00022191,2]
[392530243,1761613850795,-500.0,0.00022191,2]
[392530244,1761613850805,-267.88867556,0.00022191,2]
[392530245,1761613850815,-507.58418826,0.00022191,2]
[392530246,1761613850824,-805.72,0.00022191,2]
[392530247,1761613850834,-500.0,0.00022191,2]
[392530248,1761613850844,-1608.51,0.00022191,2]
[392530249,1761613850853,-500.0,0.00022191,2]
[392530250,1761613850862,-519.85,0.00022191,2]
[392530251,1761613850872,-500.0,0.00022191,2]
[392530252,1761613850881,-500.0,0.00022191,2]
[392530253,1761613850891,-500.0,0.00022191,2]
[392530254,1761613850900,-1632.46,0.00022191,2]
[392530255,1761613850910,-1018.21,0.00022191,2]
[392530256,1761613850919,-674.49,0.00022191,2]
[392530257,1761613850929,-500.0,0.00022191,2]
[392530258,1761613850938,-500.0,0.00022191,2]
[392530259,1761613850947,-964.02,0.00022191,2]
[392530260,1761613850957,-500.0,0.00022191,2]
[392530261,1761613850966,-500.0,0.00022191,2]
[392530262,1761613850975,-631.4,0.00022191,2]
[392530263,1761613850985,-1091.57,0.00022191,2]
[392530264,1761613850997,-802.0,0.00022191,2]
[392530265,1761613851013,-1118.22,0.00022191,2]
[392530266,1761613851022,-500.0,0.00022191,2]
[392530267,1761613851031,-1032.99,0.00022191,2]
[392530268,1761613851040,-500.0,0.00022191,2]
[392530269,1761613851050,-931.13,0.00022191,2]
[392530270,1761613851059,-500.0,0.00022191,2]
[392530271,1761613851068,-3020.85,0.00022191,2]
[392530272,1761613851078,-500.0,0.00022191,2]
[392530273,1761613851087,-771.75,0.00022191,2]
[392530274,1761613851098,-500.0,0.00022191,2]
[392530275,1761613851107,-606.31,0.00022191,2]
[392530276,1761613851116,-1349.42,0.00022191,2]
[392530277,1761613851127,-372.38348435,0.00022191,2]
[392530278,1761613851139,-500.0,0.00022191,2]
[392530279,1761613851148,-500.0,0.00022191,2]
[392530280,1761613851158,-940.2,0.00022191,2]
[392530281,1761613851168,-500.0,0.00022191,2]
[392530282,1761613851178,-1041.91,0.00022191,2]
[392530283,1761613851188,-500.0,0.00022191,2]
[392530284,1761613851198,-351.68184417,0.00022191,2]
[392530285,1761613852032,-283.663443,0.00019319,7]
[392530286,1761613852041,-283.663443,0.000219,7]
[392530287,1761613852050,-283.663443,0.00021917,7]
[392530288,1761613852060,-283.663443,0.00021917,7]
[392530289,1761613852069,-283.663443,0.00021917,7]
[392530290,1761613852078,-283.663436,0.00021917,7]
[392530291,1761613852088,-302.43815583,0.00022191,2]
[392530292,1761613852097,-2492.61,0.00022191,2]
[392530293,1761613852106,-500.0,0.00022191,2]
[392530294,1761613852115,-500.0,0.00022191,2]
[392530295,1761613852124,-500.0,0.00022191,2]
[392530296,1761613852134,-500.0,0.00022191,2]
[392530297,1761613852143,-577.05116969,0.00022191,2]
[392530298,1761613852152,-500.0,0.00022191,2]
[392530299,1761613852162,-500.0,0.00022191,2]
[392530300,1761613852171,-500.0,0.00022191,2]
[392530301,1761613852180,-500.0,0.00022191,2]
[392530302,1761613852189,-1675.6,0.00022191,2]
[392530303,1761613852198,-500.0,0.00022191,2]
[392530304,1761613852207,-681.59,0.00022191,2]
[392530305,1761613852216,-500.0,0.00022191,2]
[392530306,1761613852225,-500.0,0.00022191,2]
[392530307,1761613852235,-500.0,0.00022191,2]
[392530308,1761613852244,-500.0,0.00022191,2]
[392530309,1761613852253,-500.0,0.00022191,2]
[392530310,1761613852262,-737.83,0.00022191,2]
[392530311,1761613852271,-942.72,0.00022191,2]
[392530312,1761613852280,-1165.6,0.00022191,2]
[392530313,1761613852289,-500.0,0.00022191,2]
[392530314,1761613852298,-500.0,0.00022191,2]
[392530315,1761613852307,-762.85,0.00022191,2]
[392530316,1761613852317,-524.64,0.00022191,2]
[392530317,1761613852326,-3614.28,0.00022191,2]
[392530318,1761613852335,-500.0,0.00022191,2]
[392530319,1761613852345,-500.0,0.00022191,2]
[392530320,1761613852355,-500.0,0.00022191,2]
[392530321,1761613852365,-500.0,0.00022191,2]
[392530322,1761613852375,-500.0,0.00022191,2]
[392530323,1761613852385,-862.94,0.00022191,2]
[392530324,1761613852396,-500.0,0.00022191,2]
[392530325,1761613852406,-500.0,0.00022191,2]
[392530326,1761613852416,-500.0,0.00022191,2]
[392530327,1761613852427,-500.0,0.00022191,2]
[392530328,1761613852436,-500.0,0.00022191,2]
[392530329,1761613852448,-500.0,0.00022191,2]
[392530330,1761613852458,-500.0,0.00022191,2]
[392530331,1761613852469,-500.0,0.00022191,2]
[392530332,1761613852478,-502.68,0.00022191,2]
[392530333,1761613852487,-500.0,0.00022191,2]
[392530334,1761613852496,-2021.16,0.00022191,2]
[392530335,1761613852506,-501.14,0.00022191,2]
[392530336,1761613852515,-500.0,0.00022191,2]
[392530337,1761613852524,-500.0,0.00022191,2]
[392530338,1761613852534,-523.26,0.00022191,2]
[392530339,1761613852548,-504.72,0.00022191,2]
[392530340,1761613852557,-813.24,0.00022191,2]
[392530341,1761613852566,-1007.56,0.00022191,2]
[392530342,1761613852576,-500.0,0.00022191,2]
[392530343,1761613852585,-500.0,0.00022191,2]
[392530344,1761613852596,-500.0,0.00022191,2]
[392530345,1761613852604,-500.0,0.00022191,2]
[392530346,1761613852614,-672.58,0.00022191,2]
[392530347,1761613852625,-500.0,0.00022191,2]
[392530348,1761613852634,-166.536497,0.00022191,2]
[392530349,1761613852643,-500.0,0.00022191,2]
[392530350,1761613852653,-500.0,0.00022191,2]
[392530351,1761613852663,-500.0,0.00022191,2]
[392530352,1761613852673,-904.09,0.00022191,2]
[392530353,1761613852682,-500.0,0.00022191,2]
[392530354,1761613852691,-593.66,0.00022191,2]
[392530355,1761613852700,-500.0,0.00022191,2]
[392530356,1761613852710,-524.65,0.00022191,2]
[392530357,1761613852720,-1374.49,0.00022191,2]
[392530358,1761613852729,-500.0,0.00022191,2]
[392530359,1761613852738,-500.0,0.00022191,2]
[392530360,1761613852748,-339.09204134,0.00022191,2]
[392530361,1761613852757,-500.0,0.00022191,2]
[392530362,1761613852767,-500.0,0.00022191,2]
[392530363,1761613852776,-551.32,0.00022191,2]
[392530364,1761613852785,-500.0,0.00022191,2]
[392530365,1761613852794,-500.0,0.00022191,2]
[392530366,1761613852803,-1574.34,0.00022191,2]
[392530367,1761613852813,-500.0,0.00022191,2]
[392530368,1761613852825,-500.0,0.00022191,2]
[392530369,1761613852836,-500.2,0.00022191,2]
[392530370,1761613852845,-1949.71,0.00022191,2]
[392530371,1761613852855,-500.0,0.00022191,2]
[392530372,1761613852864,-972.09,0.00022191,2]
[392530373,1761613852874,-500.0,0.00022191,2]
[392530374,1761613852882,-909.31,0.00022191,2]
[392530375,1761613852891,-1000.0,0.00022191,2]
[392530376,1761613852901,-500.0,0.00022191,2]
[392530377,1761613852909,-500.0,0.00022191,2]
[392530378,1761613852918,-500.0,0.00022191,2]
[392530379,1761613852927,-500.0,0.00022191,2]
[392530380,1761613852936,-1445.09,0.00022191,2]
[392530381,1761613852945,-500.0,0.00022191,2]
[392530382,1761613852954,-500.0,0.00022191,2]
[392530383,1761613852963,-500.0,0.00022191,2]
[392530384,1761613852973,-500.0,0.00022191,2]
[392530385,1761613852982,-500.0,0.00022191,2]
[392530386,1761613852990,-500.0,0.00022191,2]
[392530387,1761613853000,-500.0,0.00022191,2]
[392530388,1761613853009,-1133.5,0.00022191,2]
[392530389,1761613853018,-152.277619,0.00022191,2]
[392530390,1761613853028,-500.0,0.00022191,2]
[392530391,1761613853037,-500.0,0.00022191,2]
[392530392,1761613853047,-2094.96,0.00022191,2]
[392530393,1761613853056,-500.0,0.00022191,2]
[392530394,1761613853066,-635.03,0.00022191,2]
[392530395,1761613853075,-1396.57,0.00022191,2]
[392530396,1761613853085,-500.0,0.00022191,2]
[392530397,1761613853094,-665.84,0.00022191,2]
[392530398,1761613853104,-1762.41,0.00022191,2]
[392530399,1761613853115,-500.0,0.00022191,2]
[392530400,1761613853124,-500.0,0.00022191,2]
[392530401,1761613853133,-500.0,0.00022191,2]
[392530402,1761613853142,-500.0,0.00022191,2]
[392530403,1761613853152,-500.0,0.00022191,2]
[392530404,1761613853161,-500.0,0.00022191,2]
[392530405,1761613853170,-500.0,0.00022191,2]
[392530406,1761613853180,-500.0,0.00022191,2]
[392530407,1761613853189,-500.0,0.00022191,2]
[392530408,1761613853198,-777.11,0.00022191,2]
[392530409,1761613853208,-1969.05,0.00022191,2]
[392530410,1761613853218,-1213.45,0.00022191,2]
[392530411,1761613853228,-500.0,0.00022191,2]
[392530412,1761613853238,-500.0,0.00022191,2]
[392530413,1761613853248,-500.0,0.00022191,2]
[392530414,1761613853257,-500.0,0.00022191,2]
[392530415,1761613853266,-500.0,0.00022191,2]
[392530416,1761613853275,-500.0,0.00022191,2]
[392530417,1761613853285,-614.86,0.00022191,2]
[392530418,1761613853294,-500.0,0.00022191,2]
[392530419,1761613853304,-500.0,0.00022191,2]
[392530420,1761613853313,-506.45,0.00022191,2]
[392530421,1761613853323,-521.25,0.00022191,2]
[392530422,1761613853333,-500.0,0.00022191,2]
[392530423,1761613853342,-611.57,0.00022191,2]
[392530424,1761613853352,-503.44,0.00022191,2]
[392530425,1761613853361,-1416.69,0.00022191,2]
[392530426,1761613853371,-500.0,0.00022191,2]
[392530427,1761613853380,-500.0,0.00022191,2]
[392530428,1761613853389,-500.0,0.00022191,2]
[392530429,1761613853398,-500.0,0.00022191,2]
[392530430,1761613853408,-1061.97,0.00022191,2]
[392530431,1761613853417,-500.0,0.00022191,2]
[392530432,1761613853427,-505.46623743,0.00022191,2]
[392530433,1761613853436,-2033.53,0.00022191,2]
[392530434,1761613853445,-500.0,0.00022191,2]
[392530435,1761613853455,-517.68,0.00022191,2]
[392530436,1761613853465,-636.06,0.00022191,2]
[392530437,1761613853475,-500.0,0.00022191,2]
[392530438,1761613853484,-500.0,0.00022191,2]
[392530439,1761613853493,-788.85,0.00022191,2]
[392530440,1761613853502,-500.0,0.00022191,2]
[392530441,1761613853511,-500.0,0.00022191,2]
[392530442,1761613853521,-500.0,0.00022191,2]
[392530443,1761613853531,-1457.43,0.00022191,2]
[392530444,1761613853541,-501.95,0.00022191,2]
[392530445,1761613853552,-500.0,0.00022191,2]
[392530446,1761613853563,-830.57,0.00022191,2]
[392530447,1761613853573,-500.0,0.00022191,2]
[392530448,1761613853583,-500.0,0.00022191,2]
[392530449,1761613853593,-500.0,0.00022191,2]
[392530450,1761613853602,-1026.45,0.00022191,2]
[392530451,1761613853612,-707.19,0.00022191,2]
[392530452,1761613853623,-500.0,0.00022191,2]
[392530453,1761613853632,-500.0,0.00022191,2]
[392530454,1761613853642,-500.0,0.00022191,2]
[392530455,1761613853651,-500.0,0.00022191,2]
[392530456,1761613853660,-612.24,0.00022191,2]
[392530457,1761613853670,-500.0,0.00022191,2]
[392530458,1761613853679,-3472.14,0.00022191,2]
[392530459,1761613853689,-692.86,0.00022191,2]
[392530460,1761613853698,-504.24,0.00022191,2]
[392530461,1761613853707,-500.0,0.00022191,2]
[392530462,1761613853716,-737.57,0.00022191,2]
[392530463,1761613853726,-1398.24,0.00022191,2]
[392530464,1761613853736,-1475.08,0.00022191,2]
[392530465,1761613853745,-958.84,0.00022191,2]
[392530466,1761613853755,-500.0,0.00022191,2]
[392530467,1761613853765,-500.0,0.00022191,2]
[392530468,1761613853774,-919.28,0.00022191,2]
[392530469,1761613853784,-1334.07,0.00022191,2]
[392530470,1761613853793,-500.0,0.00022191,2]
[392530471,1761613853802,-1777.76,0.00022191,2]
[392530472,1761613853813,-602.3897853,0.00022191,2]
[392530473,1761613853822,-500.0,0.00022191,2]
[392530474,1761613853832,-500.0,0.00022191,2]
[392530475,1761613853841,-500.0,0.00022191,2]
[392530476,1761613853850,-1817.74,0.00022191,2]
[392530477,1761613853859,-500.0,0.00022191,2]
[392530478,1761613853869,-1073.95,0.00022191,2]
[392530479,1761613853879,-921.84,0.00022191,2]
[392530480,1761613853888,-500.0,0.00022191,2]
[392530481,1761613853897,-645.55,0.00022191,2]
[392530482,1761613853906,-500.0,0.00022191,2]
[392530483,1761613853915,-500.0,0.00022191,2]
[392530484,1761613853925,-500.0,0.00022191,2]
[392530485,1761613853934,-649.69,0.00022191,2]
[392530486,1761613853943,-913.31,0.00022191,2]
[392530487,1761613853953,-500.0,0.00022191,2]
[392530488,1761613853962,-500.0,0.00022191,2]
[392530489,1761613853971,-769.0,0.00022191,2]
[392530490,1761613853980,-500.0,0.00022191,2]
[392530491,1761613853989,-500.0,0.00022191,2]
[392530492,1761613854006,-919.55,0.00022191,2]
[392530493,1761613854015,-500.0,0.00022191,2]
[392530494,1761613854024,-500.0,0.00022191,2]
[392530495,1761613854034,-1137.09,0.00022191,2]
[392530496,1761613854043,-1496.51,0.00022191,2]
[392530497,1761613854052,-500.0,0.00022191,2]
[392530498,1761613854062,-688.26,0.00022191,2]
[392530499,1761613854071,-600.6,0.00022191,2]
[392530500,1761613854080,-500.0,0.00022191,2]
[392530501,1761613854090,-500.0,0.00022191,2]
[392530502,1761613854099,-549.21,0.00022191,2]
[392530503,1761613854108,-500.0,0.00022191,2]
[392530504,1761613854117,-500.0,0.00022191,2]
[392530505,1761613854126,-500.0,0.00022191,2]
[392530506,1761613854135,-701.99,0.00022191,2]
[392530507,1761613854145,-990.91,0.00022191,2]
[392530508,1761613854154,-682.92,0.00022191,2]
[392530509,1761613854163,-500.0,0.00022191,2]
[392530510,1761613854173,-500.0,0.00022191,2]
[392530511,1761613854182,-739.05,0.00022191,2]
[392530512,1761613854191,-487.40612238,0.00022191,2]
[392530513,1761613854201,-500.0,0.00022191,2]
[392530514,1761613854211,-1230.84,0.00022191,2]
[392530515,1761613854220,-1093.88,0.00022191,2]
[392530516,1761613854229,-500.0,0.00022191,2]
[392530517,1761613854239,-648.65,0.00022191,2]
[392530518,1761613854248,-2239.31,0.00022191,2]
[392530519,1761613854257,-709.04,0.00022191,2]
[392530520,1761613854266,-1505.78,0.00022191,2]
[392530521,1761613854278,-2871.87,0.00022191,2]
[392530522,1761613854288,-1679.26,0.00022191,2]
[392530523,1761613854298,-500.0,0.00022191,2]
[392530524,1761613854308,-2479.23,0.00022191,2]
[392530525,1761613854319,-500.0,0.00022191,2]
[392530526,1761613854328,-500.0,0.00022191,2]
[392530527,1761613854337,-506.23171491,0.00022191,2]
[392530528,1761613854347,-500.0,0.00022191,2]
[392530529,1761613854357,-500.0,0.00022191,2]
[392530530,1761613854518,-500.0,0.00022191,2]
[392530531,1761613854528,-500.0,0.00022191,2]
[392530532,1761613854538,-719.61,0.00022191,2]
[392530533,1761613854552,-621.66,0.00022191,2]
[392530534,1761613854563,-500.0,0.00022191,2]
[392530535,1761613854572,-559.2,0.00022191,2]
[392530536,1761613854581,-500.0,0.00022191,2]
[392530537,1761613854591,-500.0,0.00022191,2]
[392530538,1761613854600,-819.63,0.00022191,2]
[392530539,1761613854609,-2167.48,0.00022191,2]
[392530540,1761613854618,-261.95697159,0.00022191,2]
[392530541,1761613854628,-812.04,0.00022191,2]
[392530542,1761613854638,-500.0,0.00022191,2]
[392530543,1761613854647,-500.0,0.00022191,2]
[392530544,1761613854657,-151.0,0.00022191,2]
[392530545,1761613854666,-822.44,0.00022191,2]
[392530546,1761613854675,-682.86,0.00022191,2]
[392530547,1761613854685,-500.0,0.00022191,2]
[392530548,1761613854694,-1219.12,0.00022191,2]
[392530549,1761613854703,-500.0,0.00022191,2]
[392530550,1761613854713,-22.64757825,0.00022191,2]
[392530646,1761614587532,-1200.0,0.00018099,2]
[392530647,1761614587554,-298.0,0.00018099,2]
[392530648,1761614587575,-300.0,0.00018099,2]
[392530649,1761614587595,-574.54565551,0.00018099,2]
[392530650,1761614587619,-627.45434449,0.000181,2]
[392530652,1761614655295,1000.0,0.0003,120]
[392530655,1761614829846,314.0,0.00030136,120]
[392530663,1761614878699,168.645905,0.00030137,120]
[392530667,1761615021719,175.53809517,0.0001825,9]
[392530732,1761615032711,-300.0,0.00018099,2]
[392530734,1761615032721,-200.0,0.00018099,2]
[392530736,1761615032730,-286.00117446,0.00018099,2]
[392530981,1761615038630,-277.19947674,0.00018099,2]
[392530982,1761615038640,-343.64601407,0.000181,2]
[392530983,1761615038649,-403.5761775,0.00018129,2]
[392530984,1761615038659,-1000.10001,0.00018188,2]
[392530985,1761615038669,-203.02519941,0.00018188,2]
[392530986,1761615038678,-500.0,0.00018189,2]
[392530987,1761615038688,-386.80611653,0.00018189,2]
[392530988,1761615038697,-234.24894202,0.00018189,2]
[392530989,1761615038709,-611.48457101,0.00018189,2]
[392530990,1761615038718,-42.93494906,0.00018189,2]
[392530991,1761615038730,-456.99555029,0.00018189,2]
[392530992,1761615038739,-420.22019433,0.00018189,2]
[392530993,1761615038749,-173.21780008,0.00018189,2]
[392530994,1761615038758,-278.75321276,0.00018189,2]
[392530995,1761615038768,-362.62262279,0.00018189,2]
[392530996,1761615038778,-500.0,0.00018189,2]
[392530997,1761615038787,-263.94774375,0.00018189,2]
[392530998,1761615038797,-500.0,0.00018189,2]
[392530999,1761615038806,-500.0,0.00018189,2]
[392531000,1761615038816,-500.0,0.00018189,2]
[392531001,1761615038826,-500.0,0.00018189,2]
[392531002,1761615038836,-104.6185846,0.00018189,2]
[392531060,1761615041050,-23.15402576,0.00018189,2]
[392531064,1761615043662,-372.22738964,0.00018189,2]
[392531065,1761615043673,-500.0,0.00018189,2]
[392531066,1761615043683,-500.0,0.00018189,2]
[392531067,1761615043693,-520.94415988,0.00018189,2]
[392531068,1761615043704,-7520.56882246,0.0001819,2]
[392531074,1761615046914,-8004.7838701,0.0001819,2]
[392531075,1761615046927,-10306.35313181,0.0001819,2]
[392531077,1761615113689,552.1,0.0003013,120]
[392531091,1761615208254,711.27043,0.0003013,120]
[392531097,1761615528116,-4070.76572601,0.00017997,2]
[392531098,1761615528350,-1858.47854798,0.00017997,2]
[392531099,1761615528625,-2090.17637275,0.00018,2]
[392531100,1761615528736,-10000.01,0.00018,2]
[392531101,1761615528859,-10000.01,0.00018,2]
[392531102,1761615528943,-10000.01,0.00018,2]
[392531103,1761615529324,-10000.01,0.00018,2]
[392531104,1761615529352,-10000.01,0.00018,2]
[392531105,1761615529369,-10000.01,0.00018,2]
[392531106,1761615529493,-10000.01,0.00018,2]
[392531107,1761615529573,-10000.01,0.00018,2]
[392531108,1761615529737,-10000.01,0.00018,2]
[392531109,1761615529782,-10000.01,0.00018,2]
[392531110,1761615529981,-10000.01,0.00018,2]
[392531112,1761615534016,-10000.01,0.00018,2]
[392531113,1761615534124,-10000.01,0.00018,2]
[392531114,1761615534231,-10000.01,0.00018,2]
[392531115,1761615534336,-10000.01,0.00018,2]
[392531116,1761615534463,-10000.01,0.00018,2]
[392531117,1761615534588,-10000.01,0.00018,2]
[392531118,1761615534729,-10000.01,0.00018,2]
[392531119,1761615534868,-10000.01,0.00018,2]
[392531120,1761615535032,-10000.01,0.00018,2]
[392531121,1761615535167,-10000.01,0.00018,2]
[392531122,1761615535305,-10000.01,0.00018,2]
[392531123,1761615535422,-10000.01,0.00018,2]
[392531124,1761615535592,-10000.01,0.00018,2]
[392531125,1761615535705,-10000.01,0.00018,2]
[392531126,1761615535807,-10000.01,0.00018,2]
[392531128,1761615549171,5000.0,0.0001825,9]
[392531129,1761615557044,5000.0,0.0001825,9]
[392531130,1761615572400,5000.0,0.0001825,9]
[392531131,1761615580443,2285.64206558,0.0001825,9]
[392531132,1761615688000,-200.0,0.00017421,2]
[392531133,1761615688032,-650.0,0.00017808,2]
[392531134,1761615688059,-205.77445225,0.00017897,2]
[392531135,1761615688087,-551.93663818,0.00017898,2]
[392531136,1761615688116,-169.34487224,0.00017988,2]
[392531137,1761615688211,-6445.89807466,0.00018,2]
[392531138,1761615688238,-10000.01,0.00018,2]
[392531139,1761615688371,-10000.01,0.00018,2]
[392531140,1761615688490,-10000.01,0.00018,2]
[392531141,1761615688769,-10000.01,0.00018,2]
[392531142,1761615688878,-10000.01,0.00018,2]
[392531143,1761615688989,-10000.01,0.00018,2]
[392531144,1761615689081,-10000.01,0.00018,2]
[392531145,1761615689188,-10000.01,0.00018,2]
[392531146,1761615689331,-10000.01,0.00018,2]
[392531147,1761615689394,-10000.01,0.00018,2]
[392531148,1761615689510,-10000.01,0.00018,2]
[392531149,1761615689686,-10000.01,0.00018,2]
[392531150,1761615689834,-10000.01,0.00018,2]
[392531151,1761615689961,-10000.01,0.00018,2]
[392531152,1761615693800,-10000.01,0.00018,2]
[392531153,1761615693924,-10000.01,0.00018,2]
[392531154,1761615694059,-10000.01,0.00018,2]
[392531155,1761615694187,-10000.01,0.00018,2]
[392531156,1761615694302,-10000.01,0.00018,2]
[392531157,1761615694416,-10000.01,0.00018,2]
[392531158,1761615694541,-10000.01,0.00018,2]
[392531159,1761615695000,-10000.01,0.00018,2]
[392531160,1761615695138,-10000.01,0.00018,2]